bitfinex/quotes_BTCUSD_20250110
["timestamp","ask_amount","ask_price","bid_price","bid_amount"]
[1736508903223,0.002,94788.0,94783.0,0.048]
[1736508903435,0.15,94793.0,94784.0,0.10429976]
[1736508903640,0.28361891,94856.0,94787.0,0.210999]
[1736508903641,0.210954,94808.0,94787.0,0.210999]
[1736508903842,0.004,94793.0,94789.0,0.210994]
[1736508904055,0.15,94807.0,94790.0,0.18469976]
[1736508904255,0.15,94807.0,94791.0,0.21099]
[1736508904459,0.15,94807.0,94792.0,0.10429976]
[1736508904665,0.15,94807.0,94794.0,0.0829]
[1736508904865,0.15,94807.0,94795.0,0.10429976]
[1736508905167,0.15,94810.0,94796.0,0.00817162]
[1736508905410,0.15,94810.0,94796.0,0.11247138]
[1736508905628,0.15,94808.0,94796.0,0.11247138]
[1736508905828,0.15,94808.0,94797.0,0.10429976]
[1736508906036,0.15,94808.0,94798.0,0.0811]
[1736508906237,0.15,94808.0,94799.0,0.10429976]
[1736508906656,0.15,94812.0,94800.0,0.00680319]
[1736508906869,0.15,94812.0,94801.0,0.10429976]
[1736508907074,0.15,94812.0,94803.0,0.0762]
[1736508907281,0.15,94812.0,94804.0,0.10429976]
[1736508907487,0.15,94812.0,94805.0,0.210959]
[1736508907700,0.16050963,94821.0,94806.0,0.10429976]
[1736508907916,0.210901,94832.0,94811.0,0.210944]
[1736508908171,0.210901,94832.0,94812.0,0.18625909]
[1736508908376,0.210901,94831.0,94814.0,0.0457]
[1736508908610,0.000171,94840.0,94815.0,0.31523476]
[1736508908820,0.00014522,94831.0,94821.0,0.1]
[1736508909028,0.00014522,94831.0,94822.0,0.14959976]
[1736508909255,0.00014522,94831.0,94822.0,0.05202527]
[1736508910018,0.00014522,94831.0,94823.0,0.10429976]
[1736508910219,0.00014522,94831.0,94824.0,0.0758]
[1736508910422,0.00014522,94831.0,94825.0,0.10429976]
[1736508910750,0.00014522,94831.0,94826.0,0.00670563]
[1736508910949,0.00014522,94831.0,94827.0,0.10429976]
[1736508911147,0.00014522,94831.0,94828.0,0.00669882]
[1736508911360,0.00014522,94831.0,94829.0,0.10429976]
[1736508911530,0.00014522,94831.0,94830.0,0.05053136]
[1736508911741,0.00014522,94831.0,94830.0,0.11099177]
[1736508912930,0.00014522,94831.0,94830.0,0.11299177]
[1736508914471,0.00114522,94831.0,94830.0,0.11299177]
[1736508915213,0.00114522,94831.0,94830.0,0.11099177]
[1736508915497,0.00114522,94831.0,94830.0,0.23619177]
[1736508915702,0.00114522,94831.0,94830.0,0.40781305]
[1736508916323,0.00014522,94831.0,94830.0,0.33619177]
[1736508916522,0.00114522,94831.0,94830.0,0.43612019]
[1736508917358,0.00014522,94831.0,94830.0,0.43612019]
[1736508917567,0.00014522,94831.0,94830.0,0.43412019]
[1736508917777,0.00214522,94831.0,94830.0,0.5246211]
[1736508917979,0.00114522,94831.0,94830.0,0.5246211]
[1736508918216,0.00014522,94831.0,94830.0,0.5226211]
[1736508918746,0.00114522,94831.0,94830.0,0.5246211]
[1736508919509,0.00214522,94831.0,94830.0,0.5276211]
[1736508919705,0.00214522,94831.0,94830.0,0.42769268]
[1736508919908,0.00214522,94831.0,94830.0,0.5276211]
[1736508920228,0.000171,94840.0,94837.0,0.210888]
[1736508920429,0.000171,94840.0,94838.0,0.1453814]
[1736508920633,0.000171,94840.0,94838.0,0.15202254]
[1736508922288,0.000171,94840.0,94839.0,0.1]
[1736508922592,0.000171,94840.0,94839.0,0.2109375]
[1736508923778,0.000171,94840.0,94839.0,0.2139375]
[1736508923985,0.000171,94840.0,94839.0,0.27072136]
[1736508924212,0.000171,94840.0,94839.0,0.27372136]
[1736508926019,0.000171,94840.0,94839.0,0.2169375]
[1736508928838,0.000171,94840.0,94839.0,0.2980375]
[1736508929843,0.000171,94840.0,94839.0,0.3458375]
[1736508930479,0.000171,94840.0,94839.0,0.3688375]
[1736508931274,0.000171,94840.0,94839.0,0.3658375]
[1736508931475,0.001171,94840.0,94839.0,0.57506568]
[1736508932051,0.000171,94840.0,94839.0,0.57332111]
[1736508932436,0.000171,94840.0,94839.0,0.57032111]
[1736508932838,0.001171,94840.0,94839.0,0.57732111]
[1736508933044,0.0001708,94862.0,94861.0,0.310834]
[1736508933257,0.00031745,94862.0,94861.0,0.42265376]
[1736508933458,0.00031745,94862.0,94861.0,0.43249296]
[1736508934229,0.00031745,94862.0,94861.0,0.45549296]
[1736508934443,0.00031745,94862.0,94861.0,0.55979272]
[1736508934677,0.00031745,94862.0,94861.0,0.64459272]
[1736508935029,0.00031745,94862.0,94861.0,0.74452114]
[1736508935230,0.00031745,94862.0,94861.0,0.79102114]
[1736508936091,0.00131745,94862.0,94861.0,0.79902114]
[1736508936290,0.00031745,94862.0,94861.0,0.79102114]
[1736508936494,0.00031745,94862.0,94861.0,0.78602114]
[1736508936699,0.00131745,94862.0,94861.0,0.79402114]
[1736508937367,0.00131745,94862.0,94861.0,0.79902114]
[1736508937723,0.00131745,94862.0,94861.0,2.3206087]
[1736508937898,0.0001708,94878.0,94861.0,2.3206087]
[1736508937899,0.0001708,94878.0,94868.0,0.49992842]
[1736508938099,0.0001708,94878.0,94868.0,1.01064777]
[1736508938336,0.0001708,94878.0,94868.0,1.02046905]
[1736508939295,0.0001708,94878.0,94868.0,0.23872104]
[1736508939523,0.0001708,94878.0,94868.0,0.26846946]
[1736508939737,0.0001708,94878.0,94868.0,0.36846946]
[1736508940477,0.0011708,94869.0,94868.0,0.38146946]
[1736508941078,0.0001708,94869.0,94868.0,0.36846946]
[1736508941281,0.0001708,94869.0,94868.0,0.49576922]
[1736508941481,0.0001708,94869.0,94868.0,0.49976922]
[1736508941885,0.0001708,94869.0,94868.0,0.49576922]
[1736508942737,0.0001708,94869.0,94868.0,0.50076922]
[1736508942878,0.0001708,94869.0,94868.0,0.49576922]
[1736508943328,0.0021708,94869.0,94868.0,0.50224922]
[1736508943561,0.0021708,94869.0,94868.0,0.50976922]
[1736508946784,0.0021708,94869.0,94868.0,0.62096922]
[1736508947126,0.0021708,94869.0,94868.0,0.50976922]
[1736508949709,0.0021708,94869.0,94868.0,0.89086922]
[1736508949912,0.0021708,94869.0,94868.0,0.92362433]
[1736508950307,0.0021708,94869.0,94868.0,2.42362433]
[1736508950512,0.0011708,94869.0,94868.0,2.41462433]
[1736508950713,8e-07,94869.0,94868.0,3.09076235]
[1736508950957,0.0001708,94878.0,94877.0,0.19992842]
[1736508951085,0.0001708,94878.0,94877.0,0.73199513]
[1736508951290,0.0001708,94878.0,94877.0,0.7417795]
[1736508951935,0.0001708,94878.0,94877.0,1.1587623]
[1736508952348,0.0001708,94889.0,94888.0,0.4]
[1736508952555,0.0001708,94889.0,94888.0,0.94040218]
[1736508952709,0.0001708,94889.0,94888.0,0.97456836]
[1736508953353,0.0001708,94889.0,94888.0,0.99756836]
[1736508953737,0.0001708,94889.0,94888.0,1.00256836]
[1736508953944,0.0001708,94889.0,94888.0,1.08836931]
[1736508954257,0.0001708,94889.0,94888.0,1.09588931]
[1736508955094,0.0001708,94889.0,94888.0,0.94588931]
[1736508955235,0.0001708,94889.0,94888.0,1.01308097]
[1736508955884,0.0001708,94889.0,94888.0,0.91315255]
[1736508956087,0.0001708,94889.0,94888.0,1.01308097]
[1736508956287,0.0001708,94889.0,94888.0,1.02208097]
[1736508956487,0.0001708,94889.0,94888.0,0.72208097]
[1736508958099,0.0001708,94889.0,94888.0,0.62215255]
[1736508958305,0.0001708,94889.0,94888.0,0.72208097]
[1736508960037,0.0001708,94889.0,94888.0,0.33554661]
[1736508963582,0.0001708,94889.0,94888.0,0.35854661]
[1736508965300,0.0001708,94889.0,94888.0,0.33554661]
[1736508967349,0.0001708,94889.0,94888.0,0.12805819]
[1736508968546,0.0001708,94889.0,94888.0,0.12305819]
[1736508968747,0.0001708,94889.0,94888.0,0.11405819]
[1736508968979,0.0001708,94889.0,94888.0,0.01575843]
[1736508969190,0.00803788,94889.0,94888.0,0.006]
[1736508969399,0.15935523,94889.0,94888.0,0.006]
[1736508969604,0.23785523,94889.0,94888.0,0.006]
[1736508969747,0.421548,94888.0,94871.0,0.00756]
[1736508969954,0.08653788,94889.0,94872.0,0.11382739]
[1736508970163,0.44730988,94889.0,94888.0,0.002]
[1736508971678,0.15,94883.0,94872.0,0.10429976]
[1736508971878,0.210788,94882.0,94872.0,0.10429976]
[1736508972310,0.15,94883.0,94872.0,0.10429976]
[1736508972869,0.210777,94887.0,94872.0,0.13756814]
[1736508973073,0.15,94888.0,94873.0,0.210808]
[1736508973316,0.001,94882.0,94874.0,0.10429976]
[1736508973513,0.15,94888.0,94874.0,0.11185976]
[1736508973726,0.15,94888.0,94875.0,0.00952132]
[1736508973928,0.002,94883.0,94876.0,0.10429976]
[1736508974438,0.002,94883.0,94876.0,0.11381898]
[1736508974799,0.002,94883.0,94877.0,0.2441177]
[1736508975011,0.0001708,94889.0,94881.0,0.210789]
[1736508975210,0.0001708,94889.0,94883.0,0.210785]
[1736508975412,0.003,94888.0,94884.0,0.10429976]
[1736508975635,0.0001708,94889.0,94885.0,0.03706009]
[1736508975816,0.0001708,94889.0,94886.0,0.10429976]
[1736508976015,0.0001708,94889.0,94886.0,0.11380346]
[1736508977085,0.210774,94888.0,94886.0,0.0095037]
[1736508977407,0.210774,94888.0,94884.0,0.003]
[1736508978011,0.421549,94888.0,94884.0,0.003]
[1736508978212,0.421549,94888.0,94881.0,0.00756]
[1736508978213,0.210774,94888.0,94881.0,0.00756]
[1736508978445,0.210788,94882.0,94881.0,0.00756]
[1736508978693,0.210777,94887.0,94881.0,0.00756]
[1736508979864,0.213777,94887.0,94881.0,0.00756]
[1736508980414,0.424555,94887.0,94881.0,0.00756]
[1736508981116,0.15,94886.0,94881.0,0.00756]
[1736508981341,0.210781,94885.0,94881.0,0.00756]
[1736508981717,0.18639478,94886.0,94881.0,0.00756]
[1736508982355,0.153,94886.0,94881.0,0.00756]
[1736508982692,0.003,94886.0,94875.0,0.00756]
[1736508982904,0.003,94886.0,94876.0,0.10429976]
[1736508983116,0.003,94886.0,94876.0,0.11382908]
[1736508984383,0.003,94886.0,94877.0,0.210799]
[1736508984593,0.0001708,94889.0,94878.0,0.16640927]
[1736508984782,0.0001708,94889.0,94879.0,0.210794]
[1736508984983,0.003,94886.0,94880.0,0.10429976]
[1736508985190,0.003,94886.0,94880.0,0.11382213]
[1736508985392,0.0001708,94889.0,94881.0,0.21079]
[1736508985543,0.003,94886.0,94882.0,0.10429976]
[1736508985721,0.0001708,94889.0,94882.0,0.17592583]
[1736508985909,0.0001708,94889.0,94882.0,0.11381792]
[1736508986723,0.0001708,94889.0,94882.0,0.11581792]
[1736508987621,0.292075,94888.0,94882.0,0.11581792]
[1736508987745,0.0813,94888.0,94882.0,0.11581792]
[1736508987946,0.0813,94888.0,94882.0,0.10529976]
[1736508988152,0.0813,94888.0,94883.0,0.0095144]
[1736508988798,0.210777,94887.0,94883.0,0.0095144]
[1736508989983,0.210777,94887.0,94883.0,0.0115144]
[1736508990209,0.0001708,94889.0,94883.0,0.0125144]
[1736508990455,0.210774,94888.0,94883.0,0.0125144]
[1736508991481,0.210774,94888.0,94883.0,0.0105144]
[1736508991658,0.210774,94888.0,94883.0,0.0115144]
[1736508992038,0.210774,94888.0,94883.0,0.0125144]
[1736508992246,0.210774,94888.0,94883.0,0.0095144]
[1736508992611,0.210774,94888.0,94883.0,0.0125144]
[1736508993193,0.26794558,94888.0,94883.0,0.0125144]
[1736508993395,0.210774,94888.0,94883.0,0.0125144]
[1736508995455,0.0106779,94889.0,94883.0,0.0125144]
[1736508996437,0.0106779,94889.0,94883.0,0.0095144]
[1736508996607,0.210774,94888.0,94883.0,0.0095144]
[1736508997234,0.210779,94886.0,94883.0,0.0095144]
[1736508997367,0.210792,94880.0,94866.0,0.02145295]
[1736508997567,0.210792,94880.0,94867.0,0.11185976]
[1736508997770,0.210792,94880.0,94867.0,0.12141122]
[1736508998025,0.210794,94879.0,94867.0,0.12141122]
[1736508998970,0.210794,94879.0,94868.0,0.00756]
[1736508999173,0.001,94880.0,94869.0,0.10429976]
[1736508999381,0.210788,94882.0,94869.0,0.11384773]
[1736509001852,0.210788,94882.0,94869.0,0.11484773]
[1736509001853,0.212788,94882.0,94869.0,0.11484773]
[1736509003509,0.212788,94882.0,94870.0,0.00756]
[1736509003713,0.212788,94882.0,94871.0,0.10429976]
[1736509005150,0.15,94871.0,94870.0,0.001]
[1736509005359,0.15131776,94871.0,94870.0,0.001]
[1736509005551,0.15131776,94871.0,94850.0,0.00023195]
[1736509005552,0.25221184,94871.0,94850.0,0.00023195]
[1736509005728,0.15131776,94870.0,94850.0,0.00023195]
[1736509005938,0.15,94868.0,94850.0,0.00023195]
[1736509006130,0.210854,94853.0,94850.0,0.00023195]
[1736509007473,0.15,94861.0,94851.0,0.10429976]
[1736509007683,0.003,94871.0,94858.0,0.023]
[1736509007931,0.003,94871.0,94865.0,0.210824]
[1736509008133,0.007,94870.0,94866.0,0.11185976]
[1736509008359,0.210782,94885.0,94868.0,0.210819]
[1736509008697,0.01048993,94889.0,94869.0,0.15691124]
[1736509008897,0.01048993,94889.0,94874.0,0.210805]
[1736509009138,0.01048993,94889.0,94875.0,0.10429976]
[1736509009347,0.01048993,94889.0,94876.0,0.0828]
[1736509009519,0.15,94887.0,94877.0,0.10429976]
[1736509009750,0.0001708,94889.0,94878.0,0.210797]
[1736509009955,0.0001708,94889.0,94884.0,0.023]
[1736509010140,0.0001708,94889.0,94887.0,0.210777]
[1736509010348,0.0001708,94889.0,94888.0,0.11185976]
[1736509010687,0.0001708,94889.0,94888.0,0.12089938]
[1736509011036,0.0001708,94889.0,94888.0,0.14224826]
[1736509011251,0.00065952,94889.0,94888.0,0.22236643]
[1736509011623,0.00565952,94889.0,94888.0,0.22236643]
[1736509011825,0.00065952,94889.0,94888.0,0.22236643]
[1736509012226,0.00065952,94889.0,94888.0,0.22636643]
[1736509012413,0.00065952,94889.0,94888.0,0.22936643]
[1736509013607,0.00065952,94889.0,94888.0,0.12789938]
[1736509020826,0.00065952,94889.0,94888.0,0.12033938]
[1736509021025,0.00065952,94889.0,94888.0,0.12789938]
[1736509021247,0.00065952,94889.0,94888.0,0.01603962]
[1736509021663,0.00065952,94889.0,94888.0,0.007]
[1736509022078,0.00065952,94889.0,94887.0,0.00756]
[1736509022292,0.00065952,94889.0,94888.0,0.003]
[1736509022638,0.00065952,94889.0,94888.0,0.002]
[1736509022858,0.00065952,94889.0,94888.0,0.003]
[1736509023839,0.00065952,94889.0,94888.0,0.001]
[1736509024046,0.00065952,94889.0,94888.0,0.003]
[1736509030790,0.00065952,94889.0,94888.0,0.01056]
[1736509030986,0.00065952,94889.0,94888.0,0.01958961]
[1736509032079,0.00065952,94889.0,94888.0,0.01056]
[1736509033075,0.00065952,94889.0,94888.0,0.01959088]
[1736509034302,0.00065952,94889.0,94888.0,0.12389064]
[1736509038402,0.00065952,94889.0,94888.0,0.1573584]
[1736509039019,0.00065952,94889.0,94888.0,0.12389064]
[1736509039612,0.00065952,94889.0,94888.0,0.01959088]
[1736509041246,0.00065952,94889.0,94888.0,0.01203088]
[1736509047619,0.00065952,94889.0,94888.0,0.11633064]
[1736509049787,0.00065952,94889.0,94888.0,0.19853064]
[1736509049980,0.00065952,94889.0,94888.0,0.2612957]
[1736509055128,0.00065952,94889.0,94888.0,0.3306957]
[1736509055379,0.00065952,94889.0,94888.0,0.56356614]
[1736509056550,0.00065952,94889.0,94888.0,0.56156614]
[1736509056768,0.00065952,94889.0,94888.0,0.56556614]
[1736509057305,0.00065952,94889.0,94888.0,0.56156614]
[1736509057459,0.00065952,94889.0,94888.0,0.56056614]
[1736509057865,0.00065952,94889.0,94888.0,0.56956614]
[1736509058924,0.00065952,94889.0,94888.0,0.57456614]
[1736509059123,0.00065952,94889.0,94888.0,0.56556614]
[1736509059668,0.00065952,94889.0,94888.0,0.9894539]
[1736509059829,0.00165952,94889.0,94888.0,0.9954539]
[1736509060469,0.00165952,94889.0,94888.0,0.57556614]
[1736509060883,0.00165952,94889.0,94888.0,0.56656614]
[1736509061110,0.00165952,94889.0,94888.0,0.57556614]
[1736509065294,0.00165952,94889.0,94888.0,0.58300614]
[1736509067317,0.00165952,94889.0,94888.0,0.27043772]
[1736509067519,0.00165952,94889.0,94888.0,0.18217064]
[1736509067759,0.00165952,94889.0,94888.0,0.44340349]
[1736509067923,0.08215952,94889.0,94888.0,0.44340349]
[1736509068132,0.08347678,94889.0,94888.0,0.44340349]
[1736509068312,0.23215952,94889.0,94888.0,0.01503088]
[1736509068512,0.2615833,94889.0,94888.0,0.006]
[1736509068718,0.2605833,94889.0,94888.0,0.002]
[1736509069133,0.22909635,94889.0,94888.0,0.003]
[1736509069585,0.210785,94883.0,94877.0,0.20345549]
[1736509069793,0.07909635,94889.0,94877.0,0.20345549]
[1736509069989,0.15,94887.0,94878.0,0.00904714]
[1736509070356,0.15,94887.0,94877.0,0.20345549]
[1736509070793,0.15,94885.0,94878.0,0.00904714]
[1736509072346,0.152,94885.0,94878.0,0.00904714]
[1736509073138,0.152,94885.0,94878.0,0.01004714]
[1736509074403,0.152,94885.0,94879.0,0.00904504]
[1736509074659,0.15,94883.0,94877.0,0.17890285]
[1736509074898,0.15,94883.0,94878.0,0.00814243]
[1736509075102,0.210788,94882.0,94878.0,0.00814243]
[1736509075303,0.15,94883.0,94877.0,0.17890285]
[1736509075829,0.15,94883.0,94879.0,0.001]
[1736509076321,0.151,94883.0,94877.0,0.17890285]
[1736509076565,0.151,94883.0,94877.0,0.17990285]
[1736509077057,0.001,94883.0,94878.0,0.00814243]
[1736509077920,0.15,94886.0,94878.0,0.00814243]
[1736509077921,0.15,94886.0,94878.0,0.11244219]
[1736509078319,0.001,94883.0,94878.0,0.11244219]
[1736509078547,0.210774,94888.0,94878.0,0.11293091]
[1736509078744,0.210774,94888.0,94879.0,0.001]
[1736509078948,0.001,94883.0,94879.0,0.001]
[1736509079150,0.001,94883.0,94880.0,0.00814706]
[1736509079559,0.001,94883.0,94880.0,0.10429976]
[1736509079734,0.001,94883.0,94881.0,0.00814495]
[1736509080852,0.15,94886.0,94881.0,0.00814495]
[1736509081676,0.001,94883.0,94881.0,0.00814495]
[1736509082079,0.15,94886.0,94881.0,0.00914495]
[1736509082699,0.15,94886.0,94881.0,0.00814495]
[1736509082884,0.151,94886.0,94881.0,0.00914495]
[1736509083005,0.36178,94886.0,94881.0,0.00914495]
[1736509083411,0.36178,94886.0,94881.0,0.00814495]
[1736509083722,0.36178,94886.0,94881.0,0.00914495]
[1736509085829,0.001,94886.0,94881.0,0.00914495]
[1736509086045,0.001,94886.0,94881.0,0.14346834]
[1736509086259,0.001,94886.0,94881.0,0.11344471]
[1736509087463,0.001,94886.0,94882.0,0.10429976]
[1736509087776,0.001,94886.0,94883.0,0.00813981]
[1736509087955,0.001,94886.0,94883.0,0.11243957]
[1736509088543,0.001,94886.0,94884.0,0.10429976]
[1736509088725,0.22135457,94894.0,94884.0,0.10429976]
[1736509088929,0.001,94886.0,94885.0,0.0081356]
[1736509089126,0.001,94886.0,94885.0,0.11243536]
[1736509089838,0.22135457,94894.0,94885.0,0.11243536]
[1736509091242,0.001,94886.0,94885.0,0.11243536]
[1736509091447,0.43211657,94894.0,94885.0,0.11243536]
[1736509091656,0.43211657,94894.0,94885.0,0.11343536]
[1736509091869,0.43311657,94894.0,94885.0,0.10529976]
[1736509092076,0.43211657,94894.0,94885.0,0.10429976]
[1736509092427,0.001,94886.0,94885.0,0.10529976]
[1736509092623,0.210772,94890.0,94885.0,0.10529976]
[1736509092834,0.210772,94890.0,94885.0,0.11243536]
[1736509093600,0.210763,94893.0,94885.0,0.11243536]
[1736509095133,0.001,94886.0,94885.0,0.11243536]
[1736509095309,0.210763,94893.0,94885.0,0.11243536]
[1736509095507,0.211763,94893.0,94885.0,0.11243536]
[1736509096083,0.210774,94889.0,94885.0,0.11243536]
[1736509096302,0.210774,94889.0,94885.0,0.0081356]
[1736509096638,0.210774,94889.0,94880.0,0.02889088]
[1736509096838,0.210774,94889.0,94881.0,0.10429976]
[1736509097042,0.210774,94889.0,94881.0,0.11244378]
[1736509097997,0.210774,94889.0,94885.0,0.001]
[1736509098340,0.210763,94893.0,94886.0,0.0081335]
[1736509098545,0.001,94889.0,94886.0,0.0081335]
[1736509098764,0.210763,94893.0,94881.0,0.10529976]
[1736509098968,0.210763,94893.0,94887.0,0.0081314]
[1736509099336,0.001,94889.0,94881.0,0.10429976]
[1736509099463,0.210763,94893.0,94888.0,0.0081293]
[1736509099665,0.001,94889.0,94881.0,0.10429976]
[1736509100013,0.210763,94893.0,94882.0,0.0073421]
[1736509100165,0.210763,94893.0,94883.0,0.10429976]
[1736509100568,0.210763,94893.0,94884.0,0.0073379]
[1736509100767,0.01059257,94894.0,94884.0,0.0073379]
[1736509100951,0.0001706,94897.0,94884.0,0.0073379]
[1736509101151,0.0001706,94897.0,94884.0,0.0147379]
[1736509101405,0.05054432,94897.0,94884.0,0.0147379]
[1736509101815,0.001,94893.0,94884.0,0.0147379]
[1736509102014,0.210762,94894.0,94884.0,0.0157379]
[1736509102418,0.210762,94894.0,94884.0,0.0147379]
[1736509102928,0.001,94893.0,94884.0,0.0147379]
[1736509103290,0.210762,94894.0,94884.0,0.0147379]
[1736509103490,0.211762,94894.0,94884.0,0.0147379]
[1736509103709,0.001,94894.0,94884.0,0.0147379]
[1736509104975,0.00131729,94896.0,94884.0,0.0157379]
[1736509105166,0.001,94893.0,94884.0,0.0157379]
[1736509105531,0.00131729,94896.0,94884.0,0.0157379]
[1736509105733,0.001,94894.0,94884.0,0.0147379]
[1736509106056,0.00131729,94896.0,94884.0,0.0147379]
[1736509106354,0.001,94893.0,94884.0,0.0147379]
[1736509106768,0.00131729,94896.0,94884.0,0.0147379]
[1736509107107,0.210759,94895.0,94884.0,0.0147379]
[1736509107329,0.00131729,94894.0,94884.0,0.0147379]
[1736509108165,0.00231729,94894.0,94884.0,0.0157379]
[1736509109670,0.001,94894.0,94884.0,0.0157379]
[1736509110894,0.001,94894.0,94885.0,0.10429976]
[1736509111225,0.001,94894.0,94886.0,0.00733369]
[1736509111827,0.01215344,94897.0,94886.0,0.00733369]
[1736509112188,0.001,94894.0,94886.0,0.00733369]
[1736509112390,0.01215344,94897.0,94886.0,0.00733369]
[1736509112598,0.01083618,94897.0,94886.0,0.00733369]
[1736509112802,0.001,94894.0,94886.0,0.00833369]
[1736509113188,0.001,94894.0,94887.0,0.0793]
[1736509113764,0.001,94894.0,94889.0,0.210772]
[1736509113976,0.001,94894.0,94890.0,0.11162504]
[1736509114178,0.001,94894.0,94890.0,0.11902504]
[1736509115010,0.01083618,94897.0,94890.0,0.11902504]
[1736509115211,0.01083618,94897.0,94890.0,0.12002504]
[1736509115432,0.01083618,94897.0,94895.0,0.210758]
[1736509115645,0.0001706,94897.0,94896.0,0.18569976]
[1736509115879,0.0001706,94897.0,94896.0,0.19301243]
[1736509115880,0.0011706,94897.0,94896.0,0.19301243]
[1736509116324,0.0001706,94897.0,94896.0,0.19301243]
[1736509116529,0.0011706,94897.0,94896.0,0.33082488]
[1736509116735,0.0001706,94897.0,94896.0,0.33082488]
[1736509116937,0.0001706,94897.0,94896.0,0.3522302]
[1736509117714,0.0001706,94897.0,94896.0,0.3552302]
[1736509118138,0.0001706,94897.0,94896.0,0.3522302]
[1736509118559,0.0001706,94897.0,94896.0,0.3562302]
[1736509118761,0.0001706,94897.0,94896.0,0.3572302]
[1736509119108,0.0001706,94897.0,94896.0,0.3562302]
[1736509119470,0.0001706,94897.0,94896.0,0.3602302]
[1736509125075,0.0001706,94897.0,94896.0,0.46015862]
[1736509126425,0.0001706,94897.0,94896.0,0.3602302]
[1736509126861,0.0001706,94897.0,94896.0,0.46015862]
[1736509127148,0.0001706,94897.0,94896.0,0.48315862]
[1736509127555,0.0001706,94897.0,94896.0,0.11961243]
[1736509127772,0.0001706,94897.0,94896.0,0.01531267]
[1736509127971,0.0001706,94897.0,94896.0,0.008]
[1736509128668,0.0001706,94897.0,94896.0,0.004]
[1736509129086,0.0011706,94897.0,94896.0,0.01130356]
[1736509129287,0.0011706,94897.0,94896.0,0.10829976]
[1736509129499,0.0011706,94897.0,94896.0,0.1503993]
[1736509129698,0.0011706,94897.0,94896.0,0.11160332]
[1736509129902,0.0011706,94897.0,94896.0,0.11360332]
[1736509130128,0.0011706,94897.0,94896.0,0.19560332]
[1736509130404,0.0001706,94897.0,94896.0,0.19360332]
[1736509130574,0.0001706,94897.0,94896.0,0.2689983]
[1736509130919,0.0001706,94897.0,94896.0,0.2719983]
[1736509131271,0.0001706,94897.0,94896.0,0.2689983]
[1736509131670,0.0001706,94897.0,94896.0,0.2729983]
[1736509131999,0.0001706,94897.0,94896.0,0.2719983]
[1736509132297,0.0001706,94897.0,94896.0,0.2749983]
[1736509132800,0.0001706,94897.0,94896.0,0.2719983]
[1736509133011,0.0001706,94897.0,94896.0,0.2759983]
[1736509134353,0.0001706,94897.0,94896.0,0.2833983]
[1736509137750,0.0001706,94897.0,94896.0,0.2759983]
[1736509137956,0.0001706,94897.0,94896.0,0.20900332]
[1736509138161,0.0001706,94897.0,94896.0,0.12700332]
[1736509142805,0.0001706,94897.0,94896.0,0.006]
[1736509143430,0.0001706,94897.0,94896.0,0.003]
[1736509143850,0.0001706,94897.0,94896.0,0.002]
[1736509144064,0.0011706,94897.0,94896.0,0.002]
[1736509145312,0.0011706,94897.0,94891.0,0.00736]
[1736509145521,0.0011706,94897.0,94896.0,0.002]
[1736509146353,0.0011706,94897.0,94895.0,0.00736]
[1736509146563,0.0011706,94897.0,94891.0,0.002]
[1736509146767,0.0011706,94897.0,94892.0,0.00736]
[1736509147007,0.0011706,94897.0,94893.0,0.00731373]
[1736509147420,0.0001706,94897.0,94893.0,0.00731373]
[1736509148617,0.0001706,94897.0,94896.0,0.002]
[1736509148823,0.0011706,94897.0,94896.0,0.002]
[1736509149038,0.0001706,94897.0,94892.0,0.00736]
[1736509149451,0.0011706,94897.0,94893.0,0.00931575]
[1736509149606,0.0001706,94897.0,94893.0,0.00931575]
[1736509149946,0.0011706,94897.0,94893.0,0.00731575]
[1736509150864,0.0011706,94897.0,94892.0,0.002]
[1736509151019,0.0001706,94897.0,94893.0,0.00736]
[1736509151468,0.0001706,94897.0,94894.0,0.00736]
[1736509152739,0.0011706,94897.0,94894.0,0.00736]
[1736509153132,0.0001706,94897.0,94894.0,0.00936]
[1736509153329,0.0011706,94897.0,94894.0,0.00936]
[1736509158689,0.0011706,94897.0,94894.0,0.002]
[1736509159538,0.0011706,94897.0,94895.0,0.00731126]
[1736509160528,0.0001706,94897.0,94895.0,0.00731126]
[1736509160940,0.0011706,94897.0,94895.0,0.00731126]
[1736509161549,0.0011706,94897.0,94895.0,0.002]
[1736509161719,0.0011706,94897.0,94896.0,0.00730887]
[1736509162165,0.0011706,94897.0,94895.0,0.002]
[1736509162357,0.0011706,94897.0,94896.0,0.00730887]
[1736509162762,0.0001706,94897.0,94896.0,0.00730887]
[1736509163021,0.0001706,94897.0,94896.0,0.002]
[1736509163203,0.0011706,94897.0,94896.0,0.00930893]
[1736509163408,0.0001706,94897.0,94896.0,0.00930893]
[1736509163747,0.0011706,94897.0,94896.0,0.00930893]
[1736509168061,0.00089135,94897.0,94896.0,0.04028252]
[1736509168775,0.00089135,94897.0,94896.0,0.00930893]
[1736509168984,0.00089135,94897.0,94896.0,0.16290869]
[1736509171401,0.00089135,94897.0,94896.0,0.16290869]
[1736509174266,0.00089135,94897.0,94896.0,0.16665123]
[1736509185888,0.00089135,94897.0,94896.0,0.17401123]
[1736509191860,0.00089135,94897.0,94896.0,0.17200673]
[1736509192389,0.00089135,94897.0,94896.0,0.23959]
[1736509193404,0.00089135,94897.0,94896.0,0.20739892]
[1736509195471,0.00089135,94897.0,94896.0,0.20239892]
[1736509197577,0.000497,94900.0,94896.0,0.20239892]
[1736509197964,0.000497,94900.0,94897.0,0.421508]
[1736509198144,0.000497,94900.0,94899.0,0.21075]
[1736509198348,0.000497,94900.0,94899.0,0.31504976]
[1736509198567,0.000497,94900.0,94899.0,0.3248671]
[1736509200322,0.000497,94900.0,94899.0,0.3278671]
[1736509200924,0.210705,94920.0,94902.0,0.210741]
[1736509201149,0.210705,94920.0,94903.0,0.17188303]
[1736509201350,0.210705,94920.0,94904.0,0.210739]
[1736509201532,0.210705,94920.0,94905.0,0.10429976]
[1736509201742,0.0001706,94946.0,94905.0,0.11409608]
[1736509201956,0.0001706,94924.0,94905.0,0.11409608]
[1736509202159,0.0001706,94924.0,94906.0,0.24997694]
[1736509202365,0.00148752,94924.0,94908.0,0.21073]
[1736509202569,0.210697,94923.0,94909.0,0.10429976]
[1736509202836,0.00131692,94922.0,94909.0,0.10429976]
[1736509203068,0.00131692,94922.0,94910.0,0.0097788]
[1736509203272,0.00131692,94922.0,94911.0,0.16177831]